{"text_format":"3","workbook":"xlsx","n_sheets":3,"sheets":["Addendum A-Routes Frequency ","Pricing Schedule","Sheet1"],"read":"whole","date_system":"1900"}

{"sheet":"Addendum A-Routes Frequency ","index":0,"n_rows":56,"n_cols":5,"rows_kept":56}
["ADDENDUM A:  DOMESTIC COURIER"]
["Route No.","Origin/Destination","Frequency","Cargo Lodgement time","Delivery time   (cargo avalable for collection)"]
[]
["DC1","Johannesburg to Cape Town","Mon to Fri"]
[null,"Cape Town to Johannesburg","Mon to Fri"]
[]
["DC2","Johannesburg to Durban","Mon to Fri"]
[null,"Durban to Johannesburg","Mon to Fri"]
[]
["DC3","Johannesburg to East London","Mon to Fri"]
[null,"East London to Johannesburg","Mon to Fri"]
[]
["DC4","Johannesburg to Port Elizabeth","Mon to Fri"]
[null,"Port Elizabeth to Johannesburg","Mon to Fri"]
[]
["DC5","Johannesburg to George","Mon to Fri"]
[null,"George to Johannesburg","Mon to Fri"]
[]
["DC6","Cape Town to Durban","Mon to Fri"]
[null,"Durban to Cape Town","Mon to Fri"]
[]
["DC7","Cape Town to Port Elizabeth","Mon to Fri"]
[null,"Port Elizabeth to Cape Town","Mon to Fri"]
[]
["DC8","Cape Town to East London","Mon to Fri"]
[null,"East London to Cape Town","Mon to Fri"]
[]
["DC09","Durban to Port Elizabeth","Mon to Fri"]
[null,"Port Elizabeth to Durban","Mon to Fri"]
[]
["DC10","Durban to East London","Mon to Fri"]
[null,"East London to Durban","Mon to Fri"]
[]
["DC11","Durban to George","Mon to Friday"]
[null,"George to Durban","Mon to Friday"]
[]
["DC12","Port Elizabeth to George","Mon to Friday"]
[null,"George to Port Elizabeth","Mon to Friday"]
[]
["DC13","Port Elizabeth to East London","As per flight schedule"]
[null,"East London to Port Elizabeth","As per flight schedule"]
[]
["DC14","Cape Town to Bloemfontein","When Required"]
[null,"Bloemfontein to Cape Town","When Required"]
[]
["DC15","Durban to Bloemfontein","When Required"]
[null,"Bloemfontein to Durban","When Required"]
[]
["DC16","Johannesburg to Bloemfontein","When Required"]
[null,"Bloemfontein to Johannesburg","When Required"]
[]
["DC17","Port Elizabeth to Bloemfontein","When Required"]
[null,"Bloemfontein to Port Elizabeth","When Required"]
[]
["DC18","East London to Bloemfontein","When Required"]
[null,"Bloemfontein to East London","When Required"]

{"sheet":"Pricing Schedule","index":1,"n_rows":74,"n_cols":9,"rows_kept":74,"merged":[[0,0,0,8],[1,0,2,1],[1,2,2,2],[1,3,1,7],[1,8,2,8],[60,0,60,9],[61,0,61,9],[63,0,63,2],[66,0,66,9],[67,0,67,9],[68,0,68,9],[70,0,70,9],[71,0,71,9],[72,0,72,9],[73,0,73,9]]}
["Annexure F - Pricing Schedule"]
["Routes",null," General Cargo Rate per kg","Additional Cost",{"$nulls":4},"Total Cargo Rate per kg"]
[{"$nulls":3},"Document Fee per consignment","Security Levy per kg","Scanning fee per kg","Fuel Levy per kg","Total Additional cost and fees"]
["DC1","Johannesburg to Cape Town",{"$nulls":5},{"$f":"SUM(D4:G4)","v":0},{"$f":"C4+H4","v":0}]
[null,"Cape Town to Johannesburg",{"$nulls":5},{"$f":"SUM(D5:G5)","v":0},{"$f":"C5+H5","v":0}]
[]
["DC2","Johannesburg to Durban",{"$nulls":5},{"$f":"SUM(D7:G7)","v":0},{"$f":"C7+H7","v":0}]
[null,"Durban to Johannesburg",{"$nulls":5},{"$f":"SUM(D8:G8)","v":0},{"$f":"C8+H8","v":0}]
[]
["DC3","Johannesburg to East London",{"$nulls":5},{"$f":"SUM(D10:G10)","v":0},{"$f":"C10+H10","v":0}]
[null,"East London to Johannesburg",{"$nulls":5},{"$f":"SUM(D11:G11)","v":0},{"$f":"C11+H11","v":0}]
[]
["DC4","Johannesburg to Port Elizabeth",{"$nulls":5},{"$f":"SUM(D13:G13)","v":0},{"$f":"C13+H13","v":0}]
[null,"Port Elizabeth to Johannesburg",{"$nulls":5},{"$f":"SUM(D14:G14)","v":0},{"$f":"C14+H14","v":0}]
[]
["DC5","Johannesburg to George",{"$nulls":5},{"$f":"SUM(D16:G16)","v":0},{"$f":"C16+H16","v":0}]
[null,"George to Johannesburg",{"$nulls":5},{"$f":"SUM(D17:G17)","v":0},{"$f":"C17+H17","v":0}]
[]
["DC6","Cape Town to Durban",{"$nulls":5},{"$f":"SUM(D19:G19)","v":0},{"$f":"C19+H19","v":0}]
[null,"Durban to Cape Town",{"$nulls":5},{"$f":"SUM(D20:G20)","v":0},{"$f":"C20+H20","v":0}]
[]
["DC7","Cape Town to Port Elizabeth",{"$nulls":5},{"$f":"SUM(D22:G22)","v":0},{"$f":"C22+H22","v":0}]
[null,"Port Elizabeth to Cape Town",{"$nulls":5},{"$f":"SUM(D23:G23)","v":0},{"$f":"C23+H23","v":0}]
[]
["DC8","Cape Town to East London",{"$nulls":5},{"$f":"SUM(D25:G25)","v":0},{"$f":"C25+H25","v":0}]
[null,"East London to Cape Town",{"$nulls":5},{"$f":"SUM(D26:G26)","v":0},{"$f":"C26+H26","v":0}]
[]
["DC09","Durban to Port Elizabeth",{"$nulls":5},{"$f":"SUM(D28:G28)","v":0},{"$f":"C28+H28","v":0}]
[null,"Port Elizabeth to Durban",{"$nulls":5},{"$f":"SUM(D29:G29)","v":0},{"$f":"C29+H29","v":0}]
[]
["DC10","Durban to East London",{"$nulls":5},{"$f":"SUM(D31:G31)","v":0},{"$f":"C31+H31","v":0}]
[null,"East London to Durban",{"$nulls":5},{"$f":"SUM(D32:G32)","v":0},{"$f":"C32+H32","v":0}]
[]
["DC11","Durban to George",{"$nulls":5},{"$f":"SUM(D34:G34)","v":0},{"$f":"C34+H34","v":0}]
[null,"George to Durban",{"$nulls":5},{"$f":"SUM(D35:G35)","v":0},{"$f":"C35+H35","v":0}]
[]
["DC12","Port Elizabeth to George",{"$nulls":5},{"$f":"SUM(D37:G37)","v":0},{"$f":"C37+H37","v":0}]
[null,"George to Port Elizabeth",{"$nulls":5},{"$f":"SUM(D38:G38)","v":0},{"$f":"C38+H38","v":0}]
[]
["DC13","Port Elizabeth to East London",{"$nulls":5},{"$f":"SUM(D40:G40)","v":0},{"$f":"C40+H40","v":0}]
[null,"East London to Port Elizabeth",{"$nulls":5},{"$f":"SUM(D41:G41)","v":0},{"$f":"C41+H41","v":0}]
[]
["DC14","Cape Town to Bloemfontein",{"$nulls":5},{"$f":"SUM(D43:G43)","v":0},{"$f":"C43+H43","v":0}]
[null,"Bloemfontein to Cape Town",{"$nulls":5},0,0]
[]
["DC15","Durban to Bloemfontein",{"$nulls":5},{"$f":"SUM(D46:G46)","v":0},{"$f":"C46+H46","v":0}]
[null,"Bloemfontein to Durban",{"$nulls":5},0,0]
[]
["DC16","Johannesburg to Bloemfontein",{"$nulls":5},{"$f":"SUM(D49:G49)","v":0},{"$f":"C49+H49","v":0}]
[null,"Bloemfontein to Johannesburg",{"$nulls":5},0,0]
[]
["DC17","Port Elizabeth to Bloemfontein",{"$nulls":5},{"$f":"SUM(D52:G52)","v":0},{"$f":"C52+H52","v":0}]
[null,"Bloemfontein to Port Elizabeth",{"$nulls":5},0,0]
[]
["DC18","East London to Bloemfontein",{"$nulls":5},{"$f":"SUM(D55:G55)","v":0},{"$f":"C55+H55","v":0}]
[null,"Bloemfontein to East London",{"$nulls":5},0,0]
[]
[]
[]
[" "]
["The Bidder warrants that the pricing quoted above is free of any errors or omissions and"]
[" that he/she is able to deliver the contract on the prices quoted."]
[]
["Quote rates that VAT INCLUSIVE;"]
[]
["GRAND TOTAL (incl optional cost)  - Amount in words:"]
[]
["NAME OF DELEGATED SIGNATORY (PRINT) :…………………………………………………………………."]
["in his capacity as"]
[]
["DESIGNATION OF SIGNATORY (PRINT) :……………………………………………......................"]
["who warrants his authority to sign on behalf of "]
[]
["NAME OF BIDDER (COMPANY) :……………………………………………………………"]

{"sheet":"Sheet1","index":2,"n_rows":0,"n_cols":0,"rows_kept":0}